fUSD/lending_fUSD_20250213
["ID","MTS","AMOUNT","RATE_DAILY","PERIOD"]
[352991956,1739477442743,-500.0,0.00013698,2]
[352991958,1739477442753,-838.91,0.00013698,2]
[352991960,1739477442762,-500.0,0.00013698,2]
[352991962,1739477442773,-500.0,0.00013698,2]
[352991964,1739477442782,-6791.78,0.00013698,2]
[352991966,1739477442791,-502.74595702,0.00013698,2]
[352991968,1739477442801,-914.22,0.00013698,2]
[352991970,1739477442810,-166.58694596,0.00013698,2]
[352991972,1739477442819,-493.80834416,0.00013698,2]
[352991975,1739477442831,-552.11165584,0.00013698,2]
[352991976,1739477442841,-1260.53235992,0.00013698,2]
[352991978,1739477442850,-3147.94006031,0.00013698,2]
[352991981,1739477442862,-1241.73993969,0.00013698,2]
[352991983,1739477442871,-683.71006031,0.00013698,2]
[352991986,1739477442890,-864.15652629,0.00013698,2]
[352991988,1739477442900,-1459.44,0.00013698,2]
[352992035,1739477443361,-322.57924131,0.00013598,2]
[352992037,1739477443371,-132.6634134,0.00013698,2]
[352992039,1739477443381,-71.51357582,0.00013698,2]
[352992041,1739477443392,-428.48642418,0.00013698,2]
[352992043,1739477443402,-3072.44,0.00013698,2]
[352992045,1739477443412,-688.4,0.00013698,2]
[352992047,1739477443422,-500.0,0.00013698,2]
[352992049,1739477443431,-3383.8,0.00013698,2]
[352992051,1739477443440,-500.0,0.00013698,2]
[352992053,1739477443450,-1264.09,0.00013698,2]
[352992055,1739477443459,-2404.93,0.00013698,2]
[352992057,1739477443469,-500.0,0.00013698,2]
[352992059,1739477443479,-588.19,0.00013698,2]
[352992061,1739477443489,-500.0,0.00013698,2]
[352992063,1739477443498,-500.0,0.00013698,2]
[352992064,1739477443507,-4199.57,0.00013698,2]
[352992065,1739477443516,-1475.21,0.00013698,2]
[352992066,1739477443525,-500.0,0.00013698,2]
[352992067,1739477443535,-2929.32187238,0.00013698,2]
[352992068,1739477443551,-257.49812762,0.00013698,2]
[352992069,1739477443562,-500.0,0.00013698,2]
[352992070,1739477443571,-500.0,0.00013698,2]
[352992071,1739477443580,-246.38256825,0.00013698,2]
[352992072,1739477443592,-1581.84743175,0.00013698,2]
[352992073,1739477443601,-316.54256825,0.00013698,2]
[352992074,1739477443612,-376.42012793,0.00013698,2]
[352992078,1739477443640,-1653.1770261,0.00013698,2]
[352992080,1739477443651,-38.07027772,0.00013698,2]
[352992082,1739477443661,-508.1518879,0.00013698,2]
[352992084,1739477443672,-342.32093239,0.00013698,2]
[352992086,1739477443683,-89.50717971,0.00013698,2]
[352992088,1739477443693,-386.52838029,0.00013698,2]
[352992092,1739477443718,-113.47161971,0.00013698,2]
[352992094,1739477443728,-2455.97,0.00013698,2]
[352992116,1739477443943,-1166.86,0.00013698,2]
[352992118,1739477443954,-2880.56,0.00013698,2]
[352992120,1739477443964,-4377.07,0.00013698,2]
[352992122,1739477443979,-500.0,0.00013698,2]
[352992124,1739477443989,-1842.74,0.00013698,2]
[352992126,1739477443998,-500.0,0.00013698,2]
[352992128,1739477444008,-3581.84,0.00013698,2]
[352992130,1739477444018,-4479.01,0.00013698,2]
[352992132,1739477444028,-1043.78137655,0.00013698,2]
[352992173,1739477444431,-388.86363569,0.00013698,2]
[352992176,1739477444447,-524.42498776,0.00013698,2]
[352992178,1739477444457,-500.0,0.00013698,2]
[352992180,1739477444467,-2742.66,0.00013698,2]
[352992182,1739477444477,-500.0,0.00013698,2]
[352992184,1739477444487,-5519.7,0.00013698,2]
[352992186,1739477444496,-5434.01,0.00013698,2]
[352992188,1739477444506,-500.0,0.00013698,2]
[352992190,1739477444515,-500.0,0.00013698,2]
[352992192,1739477444525,-808.05,0.00013698,2]
[352992194,1739477444535,-5303.19,0.00013698,2]
[352992196,1739477444545,-507.4794288,0.00013698,2]
[352992198,1739477444554,-500.0,0.00013698,2]
[352992200,1739477444564,-4360.18,0.00013698,2]
[352992202,1739477444574,-643.42,0.00013698,2]
[352992204,1739477444583,-3700.24,0.00013698,2]
[352992206,1739477444593,-11117.91,0.00013698,2]
[352992208,1739477444602,-4317.02,0.00013698,2]
[352992210,1739477444612,-2447.11,0.00013698,2]
[352992212,1739477444622,-852.42,0.00013698,2]
[352992214,1739477444631,-500.0,0.00013698,2]
[352992216,1739477444641,-2863.56,0.00013698,2]
[352992218,1739477444650,-500.0,0.00013698,2]
[352992220,1739477444660,-783.58,0.00013698,2]
[352992222,1739477444670,-500.0,0.00013698,2]
[352992224,1739477444679,-550.26,0.00013698,2]
[352992226,1739477444689,-2025.52,0.00013698,2]
[352992228,1739477444698,-500.0,0.00013698,2]
[352992230,1739477444708,-2234.43,0.00013698,2]
[352992232,1739477444718,-682.51,0.00013698,2]
[352992234,1739477444727,-4052.41,0.00013698,2]
[352992236,1739477444737,-500.0,0.00013698,2]
[352992238,1739477444747,-4502.6,0.00013698,2]
[352992240,1739477444756,-2612.31,0.00013698,2]
[352992242,1739477444766,-262.94852101,0.00013698,2]
[352992244,1739477444775,-500.0,0.00013698,2]
[352992246,1739477444786,-3679.16,0.00013698,2]
[352992248,1739477444796,-10494.8,0.00013698,2]
[352992250,1739477444807,-601.88,0.00013698,2]
[352992252,1739477444817,-732.38,0.00013698,2]
[352992254,1739477444828,-504.42129025,0.00013698,2]
[352992256,1739477444838,-708.73,0.00013698,2]
[352992258,1739477444848,-3500.86,0.00013698,2]
[352992260,1739477444857,-654.58,0.00013698,2]
[352992262,1739477444866,-2094.59,0.00013698,2]
[352992264,1739477444876,-500.0,0.00013698,2]
[352992266,1739477444886,-500.0,0.00013698,2]
[352992268,1739477444895,-1098.29,0.00013698,2]
[352992270,1739477444904,-3432.2,0.00013698,2]
[352992272,1739477444914,-2875.7,0.00013698,2]
[352992274,1739477444923,-752.12,0.00013698,2]
[352992276,1739477444933,-1398.75,0.00013698,2]
[352992278,1739477444942,-3854.52,0.00013698,2]
[352992280,1739477444953,-3739.56,0.00013698,2]
[352992282,1739477444962,-1470.31,0.00013698,2]
[352992284,1739477444971,-500.0,0.00013698,2]
[352992286,1739477444980,-2798.82643256,0.00013698,2]
[352992288,1739477444993,-584.43356744,0.00013698,2]
[352992290,1739477445003,-3343.44,0.00013698,2]
[352992292,1739477445012,-404.95679656,0.00013698,2]
[352992296,1739477445042,-200.05320344,0.00013698,2]
[352992298,1739477445052,-461.96600231,0.00013698,2]
[352992301,1739477445063,-356.89399769,0.00013698,2]
[352992303,1739477445073,-500.0,0.00013698,2]
[352992305,1739477445083,-1157.10318951,0.00013698,2]
[352992344,1739477445470,-4336.59681049,0.00013698,2]
[352992346,1739477445481,-1896.7,0.00013698,2]
[352992348,1739477445491,-181.49234451,0.00013698,2]
[352992350,1739477445503,-318.50765549,0.00013698,2]
[352992352,1739477445512,-1617.38734451,0.00013698,2]
[352992355,1739477445524,-403.92485244,0.00013698,2]
[352992378,1739477445736,-1780.66780305,0.00013698,2]
[352992380,1739477445745,-1216.57,0.00013698,2]
[352992382,1739477445755,-500.0,0.00013698,2]
[352992384,1739477445765,-5454.79,0.00013698,2]
[352992386,1739477445775,-849.49,0.00013698,2]
[352992388,1739477445785,-500.0,0.00013698,2]
[352992390,1739477445795,-500.0,0.00013698,2]
[352992392,1739477445805,-3658.99,0.00013698,2]
[352992394,1739477445815,-1371.87,0.00013698,2]
[352992396,1739477445825,-738.74,0.00013698,2]
[352992398,1739477445834,-3136.96,0.00013698,2]
[352992400,1739477445843,-3219.04,0.00013698,2]
[352992402,1739477445853,-1547.31,0.00013698,2]
[352992404,1739477445863,-2486.59,0.00013698,2]
[352992406,1739477445872,-608.95,0.00013698,2]
[352992408,1739477445882,-1598.55,0.00013698,2]
[352992410,1739477445891,-500.0,0.00013698,2]
[352992412,1739477445901,-838.83,0.00013698,2]
[352992414,1739477445911,-500.0,0.00013698,2]
[352992416,1739477445921,-500.0,0.00013698,2]
[352992418,1739477445930,-2391.29,0.00013698,2]
[352992420,1739477445940,-5404.22,0.00013698,2]
[352992422,1739477445950,-500.0,0.00013698,2]
[352992424,1739477445959,-1958.72,0.00013698,2]
[352992426,1739477445968,-4360.29665889,0.00013698,2]
[352992429,1739477445989,-1285.01334111,0.00013698,2]
[352992432,1739477445998,-1535.47,0.00013698,2]
[352992435,1739477446008,-1581.68,0.00013698,2]
[352992438,1739477446017,-3726.98,0.00013698,2]
[352992441,1739477446027,-4468.01,0.00013698,2]
[352992444,1739477446037,-1346.91,0.00013698,2]
[352992445,1739477446047,-1091.36,0.00013698,2]
[352992446,1739477446057,-9228.53,0.00013698,2]
[352992447,1739477446067,-3633.48,0.00013698,2]
[352992449,1739477446078,-2918.45,0.00013698,2]
[352992451,1739477446089,-500.0,0.00013698,2]
[352992460,1739477446162,-675.8,0.00013698,2]
[352992462,1739477446173,-5604.18,0.00013698,2]
[352992463,1739477446182,-2963.83,0.00013698,2]
[352992466,1739477446193,-1071.95,0.00013698,2]
[352992467,1739477446202,-3720.69,0.00013698,2]
[352992469,1739477446212,-608.98,0.00013698,2]
[352992471,1739477446223,-500.0,0.00013698,2]
[352992474,1739477446233,-2768.35,0.00013698,2]
[352992475,1739477446242,-2364.0,0.00013698,2]
[352992477,1739477446252,-500.0,0.00013698,2]
[352992479,1739477446265,-500.0,0.00013698,2]
[352992481,1739477446274,-707.49,0.00013698,2]
[352992484,1739477446285,-3770.92,0.00013698,2]
[352992486,1739477446295,-500.0,0.00013698,2]
[352992488,1739477446306,-3368.66,0.00013698,2]
[352992490,1739477446317,-500.0,0.00013698,2]
[352992492,1739477446326,-500.0,0.00013698,2]
[352992494,1739477446336,-1662.68,0.00013698,2]
[352992495,1739477446347,-524.89,0.00013698,2]
[352992497,1739477446356,-3614.63,0.00013698,2]
[352992499,1739477446365,-500.0,0.00013698,2]
[352992501,1739477446375,-4326.67,0.00013698,2]
[352992503,1739477446385,-859.53,0.00013698,2]
[352992505,1739477446394,-500.0,0.00013698,2]
[352992507,1739477446403,-500.0,0.00013698,2]
[352992509,1739477446413,-3881.17,0.00013698,2]
[352992511,1739477446423,-500.0,0.00013698,2]
[352992513,1739477446432,-906.75,0.00013698,2]
[352992515,1739477446442,-500.0,0.00013698,2]
[352992517,1739477446452,-1892.63,0.00013698,2]
[352992519,1739477446461,-2181.65,0.00013698,2]
[352992521,1739477446470,-4221.18,0.00013698,2]
[352992523,1739477446479,-573.88,0.00013698,2]
[352992525,1739477446488,-500.0,0.00013698,2]
[352992527,1739477446498,-3905.83,0.00013698,2]
[352992529,1739477446507,-1146.13,0.00013698,2]
[352992531,1739477446518,-776.23,0.00013698,2]
[352992533,1739477446528,-642.68,0.00013698,2]
[352992535,1739477446538,-500.0,0.00013698,2]
[352992537,1739477446547,-966.6,0.00013698,2]
[352992539,1739477446557,-2000.13,0.00013698,2]
[352992541,1739477446566,-547.92,0.00013698,2]
[352992543,1739477446576,-1149.79,0.00013698,2]
[352992545,1739477446585,-4833.11,0.00013698,2]
[352992547,1739477446595,-3964.39,0.00013698,2]
[352992549,1739477446604,-1434.93,0.00013698,2]
[352992551,1739477446613,-500.0,0.00013698,2]
[352992553,1739477446622,-2772.53,0.00013698,2]
[352992555,1739477446631,-6662.74,0.00013698,2]
[352992557,1739477446641,-2843.03,0.00013698,2]
[352992559,1739477446651,-5336.38,0.00013698,2]
[352992561,1739477446660,-3559.67,0.00013698,2]
[352992563,1739477446670,-500.0,0.00013698,2]
[352992565,1739477446679,-814.24,0.00013698,2]
[352992567,1739477446688,-500.0,0.00013698,2]
[352992568,1739477446698,-217.09738408,0.00013698,2]
[352992570,1739477446707,-500.0,0.00013698,2]
[352992572,1739477446717,-500.0,0.00013698,2]
[352992575,1739477446727,-663.3,0.00013698,2]
[352992576,1739477446737,-500.0,0.00013698,2]
[352992579,1739477446747,-1536.25,0.00013698,2]
[352992580,1739477446756,-2494.59,0.00013698,2]
[352992582,1739477446765,-2386.95,0.00013698,2]
[352992584,1739477446774,-500.0,0.00013698,2]
[352992586,1739477446784,-3427.26,0.00013698,2]
[352992588,1739477446793,-3266.45,0.00013698,2]
[352992590,1739477446803,-500.0,0.00013698,2]
[352992592,1739477446812,-506.94756317,0.00013698,2]
[352992594,1739477446823,-737.82,0.00013698,2]
[352992596,1739477446832,-500.0,0.00013698,2]
[352992598,1739477446844,-559.41,0.00013698,2]
[352992600,1739477446854,-611.61,0.00013698,2]
[352992602,1739477446864,-500.0,0.00013698,2]
[352992604,1739477446876,-83608.16693947,0.00013698,2]
[352992606,1739477446886,-200.0,0.00013699,2]
[352992608,1739477446896,-152.04,0.00013699,2]
[352992610,1739477446907,-438.943427,0.00013712,2]
[352992611,1739477446916,-286.54977975,0.0001375,2]
[352992612,1739477446925,-173.46997114,0.00013762,2]
[352992613,1739477446934,-1178.0,0.0001378,2]
[352992614,1739477446944,-1685.14817,0.0001378,2]
[352992615,1739477446953,-1344.62,0.0001378,2]
[352992616,1739477446963,-592.27,0.0001378,2]
[352992617,1739477446972,-2683.199131,0.0001378,2]
[352992618,1739477446981,-894.15,0.0001378,2]
[352992619,1739477446990,-500.0,0.0001378,2]
[352992620,1739477447000,-500.0,0.0001378,2]
[352992621,1739477447009,-608.6,0.0001378,2]
[352992622,1739477447018,-500.0,0.0001378,2]
[352992623,1739477447027,-1196.18,0.0001378,2]
[352992624,1739477447036,-544.11,0.0001378,2]
[352992625,1739477447045,-500.0,0.0001378,2]
[352992626,1739477447054,-500.0,0.0001378,2]
[352992627,1739477447063,-1280.98,0.0001378,2]
[352992628,1739477447072,-500.0,0.0001378,2]
[352992629,1739477447081,-611.21,0.0001378,2]
[352992630,1739477447091,-500.0,0.0001378,2]
[352992632,1739477447100,-737.95,0.0001378,2]
[352992634,1739477447110,-600.13,0.0001378,2]
[352992636,1739477447119,-704.56,0.0001378,2]
[352992638,1739477447129,-609.18,0.0001378,2]
[352992640,1739477447139,-500.0,0.0001378,2]
[352992642,1739477447148,-500.0,0.0001378,2]
[352992643,1739477447158,-500.0,0.0001378,2]
[352992644,1739477447167,-500.0,0.0001378,2]
[352992645,1739477447176,-500.0,0.0001378,2]
[352992646,1739477447186,-1132.88,0.0001378,2]
[352992647,1739477447195,-539.98,0.0001378,2]
[352992648,1739477447205,-687.04,0.0001378,2]
[352992649,1739477447215,-500.0,0.0001378,2]
[352992650,1739477447226,-500.0,0.0001378,2]
[352992651,1739477447238,-548.04,0.0001378,2]
[352992652,1739477447248,-500.0,0.0001378,2]
[352992653,1739477447258,-500.0,0.0001378,2]
[352992654,1739477447271,-500.0,0.0001378,2]
[352992655,1739477447281,-839.63,0.0001378,2]
[352992656,1739477447291,-752.06,0.0001378,2]
[352992657,1739477447304,-500.0,0.0001378,2]
[352992658,1739477447314,-822.55,0.0001378,2]
[352992659,1739477447324,-792.97,0.0001378,2]
[352992660,1739477447333,-500.0,0.0001378,2]
[352992661,1739477447341,-500.0,0.0001378,2]
[352992662,1739477447356,-934.54,0.0001378,2]
[352992663,1739477447368,-500.0,0.0001378,2]
[352992664,1739477447378,-500.0,0.0001378,2]
[352992665,1739477447388,-500.0,0.0001378,2]
[352992666,1739477447399,-2307.72,0.0001378,2]
[352992667,1739477447409,-688.83,0.0001378,2]
[352992668,1739477447419,-894.43,0.0001378,2]
[352992669,1739477447429,-1849.78,0.0001378,2]
[352992670,1739477447440,-1913.73,0.0001378,2]
[352992671,1739477447450,-500.0,0.0001378,2]
[352992672,1739477447461,-1433.72,0.0001378,2]
[352992673,1739477447470,-661.24,0.0001378,2]
[352992674,1739477447480,-592.39,0.0001378,2]
[352992675,1739477447490,-1718.47,0.0001378,2]
[352992676,1739477447499,-500.0,0.0001378,2]
[352992677,1739477447509,-500.0,0.0001378,2]
[352992678,1739477447518,-1388.54,0.0001378,2]
[352992679,1739477447528,-827.51,0.0001378,2]
[352992680,1739477447538,-1471.63,0.0001378,2]
[352992681,1739477447548,-500.0,0.0001378,2]
[352992682,1739477447558,-1363.15,0.0001378,2]
[352992683,1739477447567,-500.0,0.0001378,2]
[352992684,1739477447582,-500.0,0.0001378,2]
[352992685,1739477447592,-500.0,0.0001378,2]
[352992686,1739477447602,-866.74,0.0001378,2]
[352992687,1739477447612,-500.0,0.0001378,2]
[352992688,1739477447621,-392.2,0.0001378,2]
[352992689,1739477447631,-645.28,0.0001378,2]
[352992690,1739477447641,-542.76,0.0001378,2]
[352992692,1739477447650,-1121.76,0.0001378,2]
[352992694,1739477447660,-589.65,0.0001378,2]
[352992696,1739477447670,-2287.33,0.0001378,2]
[352992698,1739477447680,-738.79,0.0001378,2]
[352992700,1739477447690,-500.0,0.0001378,2]
[352992702,1739477447698,-1944.48,0.0001378,2]
[352992704,1739477447708,-979.35,0.0001378,2]
[352992706,1739477447717,-500.0,0.0001378,2]
[352992707,1739477447727,-500.0,0.0001378,2]
[352992709,1739477447736,-1626.41,0.0001378,2]
[352992711,1739477447745,-731.82,0.0001378,2]
[352992713,1739477447755,-500.0,0.0001378,2]
[352992715,1739477447764,-500.0,0.0001378,2]
[352992717,1739477447774,-1097.74,0.0001378,2]
[352992719,1739477447783,-2053.66,0.0001378,2]
[352992721,1739477447793,-884.12,0.0001378,2]
[352992723,1739477447802,-1670.64,0.0001378,2]
[352992725,1739477447811,-1579.11,0.0001378,2]
[352992727,1739477447821,-392.04702223,0.0001378,2]
[352992729,1739477447832,-500.0,0.0001378,2]
[352992731,1739477447841,-500.0,0.0001378,2]
[352992733,1739477447850,-1181.94,0.0001378,2]
[352992735,1739477447859,-500.0,0.0001378,2]
[352992737,1739477447868,-500.0,0.0001378,2]
[352992739,1739477447877,-2170.08,0.0001378,2]
[352992741,1739477447887,-798.13,0.0001378,2]
[352992743,1739477447896,-507.92,0.0001378,2]
[352992745,1739477447905,-750.93,0.0001378,2]
[352992747,1739477447915,-876.76,0.0001378,2]
[352992749,1739477447925,-1035.69,0.0001378,2]
[352992751,1739477447934,-526.53,0.0001378,2]
[352992753,1739477447944,-1690.47,0.0001378,2]
[352992755,1739477447954,-1029.87,0.0001378,2]
[352992757,1739477447964,-1900.27,0.0001378,2]
[352992758,1739477447973,-500.0,0.0001378,2]
[352992760,1739477447982,-785.89,0.0001378,2]
[352992762,1739477447992,-500.0,0.0001378,2]
[352992764,1739477448001,-1358.11,0.0001378,2]
[352992766,1739477448012,-500.0,0.0001378,2]
[352992768,1739477448021,-500.0,0.0001378,2]
[352992770,1739477448031,-500.0,0.0001378,2]
[352992772,1739477448041,-151.97486325,0.0001378,2]
[352992774,1739477448052,-560.27879214,0.0001378,2]
[352992776,1739477448062,-626.06,0.0001378,2]
[352992778,1739477448072,-1786.45,0.0001378,2]
[352992780,1739477448083,-1140.89,0.0001378,2]
[352992782,1739477448092,-500.0,0.0001378,2]
[352992784,1739477448102,-572.3,0.0001378,2]
[352992785,1739477448113,-500.0,0.0001378,2]
[352992787,1739477448123,-972.59,0.0001378,2]
[352992789,1739477448133,-894.98,0.0001378,2]
[352992791,1739477448143,-500.0,0.0001378,2]
[352992793,1739477448154,-1064.31,0.0001378,2]
[352992795,1739477448164,-500.0,0.0001378,2]
[352992797,1739477448175,-1812.82,0.0001378,2]
[352992799,1739477448185,-826.45,0.0001378,2]
[352992801,1739477448195,-500.0,0.0001378,2]
[352992802,1739477448206,-500.0,0.0001378,2]
[352992804,1739477448216,-718.29,0.0001378,2]
[352992806,1739477448227,-601.93,0.0001378,2]
[352992808,1739477448237,-1629.59,0.0001378,2]
[352992810,1739477448248,-503.95,0.0001378,2]
[352992812,1739477448257,-1710.0,0.0001378,2]
[352992814,1739477448272,-500.0,0.0001378,2]
[352992816,1739477448282,-1238.38,0.0001378,2]
[352992818,1739477448292,-819.77,0.0001378,2]
[352992820,1739477448302,-1290.37,0.0001378,2]
[352992822,1739477448314,-940.02,0.0001378,2]
[352992824,1739477448328,-500.0,0.0001378,2]
[352992826,1739477448339,-1010.58,0.0001378,2]
[352992828,1739477448350,-500.0,0.0001378,2]
[352992830,1739477448361,-560.57,0.0001378,2]
[352992832,1739477448373,-500.0,0.0001378,2]
[352992833,1739477448384,-500.0,0.0001378,2]
[352992836,1739477448395,-883.23,0.0001378,2]
[352992837,1739477448405,-860.78,0.0001378,2]
[352992839,1739477448415,-971.94,0.0001378,2]
[352992841,1739477448426,-2232.85,0.0001378,2]
[352992843,1739477448437,-893.87,0.0001378,2]
[352992845,1739477448448,-500.0,0.0001378,2]
[352992847,1739477448460,-1057.45,0.0001378,2]
[352992849,1739477448471,-1610.19,0.0001378,2]
[352992851,1739477448483,-1745.6,0.0001378,2]
[352992853,1739477448493,-565.22,0.0001378,2]
[352992855,1739477448505,-500.0,0.0001378,2]
[352992857,1739477448515,-2124.67,0.0001378,2]
[352992859,1739477448526,-1147.19,0.0001378,2]
[352992861,1739477448535,-500.0,0.0001378,2]
[352992863,1739477448545,-500.0,0.0001378,2]
[352992865,1739477448556,-1175.61,0.0001378,2]
[352992867,1739477448566,-500.0,0.0001378,2]
[352992869,1739477448576,-1527.42,0.0001378,2]
[352992871,1739477448586,-556.41,0.0001378,2]
[352992873,1739477448596,-500.0,0.0001378,2]
[352992875,1739477448606,-1196.91,0.0001378,2]
[352992877,1739477448616,-611.13,0.0001378,2]
[352992879,1739477448627,-1018.15,0.0001378,2]
[352992880,1739477448637,-1079.09,0.0001378,2]
[352992882,1739477448647,-974.86,0.0001378,2]
[352992884,1739477448658,-500.0,0.0001378,2]
[352992886,1739477448668,-500.0,0.0001378,2]
[352992888,1739477448679,-829.02,0.0001378,2]
[352992890,1739477448689,-1653.23,0.0001378,2]
[352992893,1739477448700,-652.55,0.0001378,2]
[352992895,1739477448711,-500.0,0.0001378,2]
[352992896,1739477448722,-1220.62,0.0001378,2]
[352992898,1739477448732,-500.0,0.0001378,2]
[352992900,1739477448743,-2095.76,0.0001378,2]
[352992902,1739477448754,-2249.01,0.0001378,2]
[352992904,1739477448765,-500.0,0.0001378,2]
[352992906,1739477448776,-2172.01,0.0001378,2]
[352992908,1739477448786,-500.0,0.0001378,2]
[352992910,1739477448796,-500.0,0.0001378,2]
[352992912,1739477448807,-500.0,0.0001378,2]
[352992914,1739477448819,-500.0,0.0001378,2]
[352992916,1739477448830,-1571.39,0.0001378,2]
[352992918,1739477448841,-500.0,0.0001378,2]
[352992920,1739477448851,-500.0,0.0001378,2]
[352992922,1739477448862,-1414.8,0.0001378,2]
[352992924,1739477448872,-1350.99,0.0001378,2]
[352992926,1739477448883,-785.95,0.0001378,2]
[352992928,1739477448895,-500.0,0.0001378,2]
[352992930,1739477448905,-500.0,0.0001378,2]
[352992932,1739477448916,-500.0,0.0001378,2]
[352992934,1739477448925,-1343.11,0.0001378,2]
[352992935,1739477448935,-500.0,0.0001378,2]
[352992937,1739477448945,-500.0,0.0001378,2]
[352992939,1739477448955,-350.83986933,0.0001378,2]
[352992941,1739477448965,-746.48,0.0001378,2]
[352992943,1739477448976,-969.62,0.0001378,2]
[352992945,1739477448985,-873.81,0.0001378,2]
[352992947,1739477448995,-500.0,0.0001378,2]
[352992949,1739477449005,-500.0,0.0001378,2]
[352992951,1739477449015,-574.85,0.0001378,2]
[352992952,1739477449025,-734.86,0.0001378,2]
[352992954,1739477449035,-500.0,0.0001378,2]
[352992956,1739477449045,-561.17,0.0001378,2]
[352992958,1739477449055,-1019.12,0.0001378,2]
[352992960,1739477449067,-588.85,0.0001378,2]
[352992962,1739477449077,-500.0,0.0001378,2]
[352992964,1739477449087,-500.0,0.0001378,2]
[352992966,1739477449097,-1574.22,0.0001378,2]
[352992968,1739477449107,-361.83134886,0.0001378,2]
[352992969,1739477449117,-500.0,0.0001378,2]
[352992971,1739477449128,-500.0,0.0001378,2]
[352992973,1739477449139,-2849.29,0.0001378,2]
[352992975,1739477449150,-1220.5,0.0001378,2]
[352992977,1739477449162,-3443.53,0.0001378,2]
[352992979,1739477449173,-500.0,0.0001378,2]
[352992981,1739477449183,-1030.8,0.0001378,2]
[352992983,1739477449193,-2659.26,0.0001378,2]
[352992984,1739477449203,-1417.83,0.0001378,2]
[352992986,1739477449213,-726.33,0.0001378,2]
[352992988,1739477449224,-343.46940701,0.0001378,2]
[352992990,1739477449235,-500.0,0.0001378,2]
[352992992,1739477449246,-500.0,0.0001378,2]
[352992994,1739477449256,-993.83,0.0001378,2]
[352992996,1739477449270,-500.0,0.0001378,2]
[352992998,1739477449282,-538.11,0.0001378,2]
[352993000,1739477449294,-897.65,0.0001378,2]
[352993002,1739477449306,-1977.47,0.0001378,2]
[352993004,1739477449318,-500.0,0.0001378,2]
[352993006,1739477449329,-500.0,0.0001378,2]
[352993008,1739477449341,-500.0,0.0001378,2]
[352993010,1739477449353,-500.0,0.0001378,2]
[352993012,1739477449364,-1272.35,0.0001378,2]
[352993014,1739477449375,-500.0,0.0001378,2]
[352993016,1739477449385,-500.0,0.0001378,2]
[352993018,1739477449394,-500.0,0.0001378,2]
[352993020,1739477449404,-2097.01,0.0001378,2]
[352993021,1739477449415,-1567.56,0.0001378,2]
[352993023,1739477449425,-806.8,0.0001378,2]
[352993025,1739477449435,-2550.36,0.0001378,2]
[352993027,1739477449446,-2585.04,0.0001378,2]
[352993029,1739477449457,-1155.51,0.0001378,2]
[352993031,1739477449467,-500.0,0.0001378,2]
[352993033,1739477449477,-500.0,0.0001378,2]
[352993035,1739477449488,-910.68,0.0001378,2]
[352993036,1739477449500,-765.3,0.0001378,2]
[352993037,1739477449511,-2625.1,0.0001378,2]
[352993038,1739477449523,-1575.61,0.0001378,2]
[352993039,1739477449541,-763.29,0.0001378,2]
[352993040,1739477449551,-500.0,0.0001378,2]